fUST/lending_fUST_20260312
["ID","MTS","AMOUNT","RATE_DAILY","PERIOD"]
[408219676,1773255038466,-300.0,6.863e-05,2]
[408219678,1773255038475,-300.0,7.64e-05,2]
[408219680,1773255038486,-300.0,7.64e-05,2]
[408219682,1773255038495,-1200.0,7.64e-05,2]
[408219684,1773255038504,-500.0,7.641e-05,2]
[408219687,1773255038513,-500.0,7.641e-05,2]
[408219690,1773255038523,-500.0,7.641e-05,2]
[408219693,1773255038532,-500.0,7.641e-05,2]
[408219695,1773255038541,-500.0,7.641e-05,2]
[408219697,1773255038550,-500.0,7.641e-05,2]
[408219699,1773255038560,-500.0,7.641e-05,2]
[408219701,1773255038570,-500.0,7.641e-05,2]
[408219703,1773255038579,-500.0,7.641e-05,2]
[408219705,1773255038588,-500.0,7.641e-05,2]
[408219707,1773255038596,-500.0,7.641e-05,2]
[408219709,1773255038605,-500.0,7.641e-05,2]
[408219711,1773255038615,-500.0,7.641e-05,2]
[408219713,1773255038624,-500.0,7.641e-05,2]
[408219715,1773255038633,-500.0,7.641e-05,2]
[408219717,1773255038642,-500.0,7.641e-05,2]
[408219718,1773255038652,-500.0,7.641e-05,2]
[408219720,1773255038661,-500.0,7.641e-05,2]
[408219722,1773255038671,-500.0,7.641e-05,2]
[408219724,1773255038680,-500.0,7.641e-05,2]
[408219726,1773255038689,-500.0,7.641e-05,2]
[408219728,1773255038698,-500.0,7.641e-05,2]
[408219730,1773255038707,-500.0,7.641e-05,2]
[408219731,1773255038716,-500.0,7.641e-05,2]
[408219733,1773255038726,-383.53040267,7.641e-05,2]
[408219735,1773255038736,-500.0,7.641e-05,2]
[408219737,1773255038746,-500.0,7.641e-05,2]
[408219739,1773255038755,-500.0,7.641e-05,2]
[408219741,1773255038765,-391.28038306,7.641e-05,2]
[408219743,1773255038774,-500.0,7.641e-05,2]
[408219745,1773255038784,-500.0,7.641e-05,2]
[408219747,1773255038793,-500.0,7.641e-05,2]
[408219749,1773255038803,-500.0,7.641e-05,2]
[408219751,1773255038812,-500.0,7.641e-05,2]
[408219753,1773255038825,-500.0,7.641e-05,2]
[408219755,1773255038835,-500.0,7.641e-05,2]
[408219757,1773255038845,-500.0,7.641e-05,2]
[408219759,1773255038854,-5218.4271269,7.644e-05,2]
[408219761,1773255038867,-2007.7370642,7.644e-05,2]
[408219763,1773255038877,-1136.9912039,7.644e-05,2]
[408219843,1773255046372,-383.71407802,6.693e-05,2]
[408219855,1773255705239,-200.0,0.0001873,120]
[408219856,1773255705274,-200.0,0.00019221,120]
[408219857,1773255705305,-610.69280262,0.0002,120]
[408219858,1773255705331,-5000.0,0.0002,120]
[408219859,1773255782932,-200.0,0.00020137,120]
[408219860,1773255782959,-200.0,0.00020189,120]
[408219861,1773255782985,-231.05113459,0.00020214,120]
[408219862,1773255783011,-161.72349688,0.00020214,120]
[408219863,1773255783044,-171.4181021,0.0002082,120]
[408219864,1773255783074,-212.17576244,0.00021093,120]
[408219865,1773255783103,-227.68951305,0.00021391,120]
[408219866,1773255783131,-604.71634032,0.00021456,120]
[408219867,1773255783160,-227.689513,0.00021504,120]
[408219868,1773255783186,-253.02396011,0.00021504,120]
[408219869,1773255783213,-224.75894109,0.00021604,120]
[408219870,1773255783239,-218.84547705,0.00021604,120]
[408219871,1773255783265,-200.0,0.00021772,120]
[408219872,1773255806748,-291.49291134,0.00022252,120]
[408219873,1773255806775,-259.83651326,0.00022322,120]
[408219874,1773255806801,-307.23177733,0.00022322,120]
[408219875,1773255806826,-604.71634032,0.00022322,120]
[408219876,1773255806852,-200.0,0.00022455,120]
[408219877,1773255806878,-200.0,0.00022489,120]
[408219878,1773255806904,-182.21711214,0.00022507,120]
[408219879,1773255806929,-199.73290842,0.00022507,120]
[408219880,1773255806955,-220.02715671,0.00022507,120]
[408219881,1773255806981,-222.97243344,0.00022507,120]
[408219882,1773255807006,-193.99094663,0.00022529,120]
[408219883,1773255807033,-200.0,0.00022615,120]
[408219884,1773255807062,-200.0,0.00022698,120]
[408219885,1773255807090,-179.85050269,0.00022799,120]
[408219886,1773255807117,-314.53192577,0.00023182,120]
[408219887,1773255807145,-235.89894432,0.00023182,120]
[408219888,1773255807172,-265.23591438,0.00023205,120]
[408219889,1773255807198,-200.0,0.00023661,120]
[408219890,1773255807226,-193.99094663,0.00023679,120]
[408219891,1773255807251,-197.02369014,0.00023679,120]
[408219892,1773255807278,-7000.0,0.00024658,120]
[408219893,1773255807303,-2262.49995296,0.00024658,120]
[408219894,1773255807324,-291.49291134,0.00024658,120]
[408219895,1773255807342,-259.83651326,0.00024658,120]
[408219896,1773255807360,-307.23177733,0.00024658,120]
[408219897,1773255807378,-604.71634032,0.00024658,120]
[408219898,1773255807396,-200.0,0.00024658,120]
[408219899,1773255807414,-200.0,0.00024658,120]
[408219900,1773255807432,-182.21711214,0.00024658,120]
[408219901,1773255807448,-199.73290842,0.00024658,120]
[408219902,1773255807465,-220.02715671,0.00024658,120]
[408219903,1773255807491,-222.97243344,0.00024658,120]
[408219904,1773255807509,-193.99094663,0.00024658,120]
[408219905,1773255807526,-200.0,0.00024658,120]
[408219906,1773255807575,-200.0,0.00024658,120]
[408219907,1773255807590,-179.85050269,0.00024658,120]
[408219908,1773255807617,-314.53192577,0.00024658,120]
[408219909,1773255807638,-235.89894432,0.00024658,120]
[408219910,1773255807654,-265.23591438,0.00024658,120]
[408219911,1773255807672,-200.0,0.00024658,120]
[408219912,1773255807688,-193.99094663,0.00024658,120]
[408219913,1773255807705,-65.77371366,0.00024658,120]
[408219914,1773255807714,-131.24997648,0.00024658,120]
[408219915,1773255807735,-5868.75002352,0.00024658,120]
[408219916,1773255807746,-400.0,0.00025,120]
[408219917,1773255807755,-168.56337578,0.00025,120]
[408219945,1773256232445,-830.65800602,5.984e-05,2]
[408220022,1773256238643,-8057.37555955,5.984e-05,2]
[408220023,1773256238653,-5000.0,6.023e-05,10]
[408220024,1773256238663,-5000.0,6.084e-05,10]
[408220025,1773256238674,-257.89294244,6.115e-05,2]
[408220026,1773256238685,-508.0,6.115e-05,2]
[408220027,1773256238695,-300.0,6.144e-05,2]
[408220029,1773256238704,-300.0,6.144e-05,2]
[408220031,1773256238715,-1200.0,6.144e-05,2]
[408220033,1773256238725,-500.0,6.511e-05,2]
[408220034,1773256238734,-500.0,6.511e-05,2]
[408220035,1773256238745,-500.0,6.511e-05,2]
[408220036,1773256238755,-500.0,6.511e-05,2]
[408220037,1773256238766,-500.0,6.511e-05,2]
[408220038,1773256238777,-500.0,6.511e-05,2]
[408220039,1773256238787,-500.0,6.511e-05,2]
[408220040,1773256238797,-500.0,6.511e-05,2]
[408220041,1773256238807,-500.0,6.511e-05,2]
[408220042,1773256238816,-500.0,6.511e-05,2]
[408220043,1773256238826,-500.0,6.511e-05,2]
[408220044,1773256238836,-500.0,6.511e-05,2]
[408220045,1773256238846,-500.0,6.511e-05,2]
[408220046,1773256238856,-500.0,6.511e-05,2]
[408220047,1773256238866,-500.0,6.511e-05,2]
[408220048,1773256238876,-500.0,6.511e-05,2]
[408220049,1773256238886,-500.0,6.511e-05,2]
[408220050,1773256238896,-500.0,6.511e-05,2]
[408220051,1773256238906,-500.0,6.511e-05,2]
[408220052,1773256238917,-500.0,6.511e-05,2]
[408220053,1773256238928,-500.0,6.511e-05,2]
[408220054,1773256238938,-500.0,6.511e-05,2]
[408220055,1773256238948,-500.0,6.511e-05,2]
[408220056,1773256238959,-500.0,6.511e-05,2]
[408220057,1773256238969,-500.0,6.511e-05,2]
[408220058,1773256238978,-500.0,6.511e-05,2]
[408220059,1773256238987,-500.0,6.511e-05,2]
[408220060,1773256238996,-500.0,6.511e-05,2]
[408220061,1773256239006,-500.0,6.511e-05,2]
[408220062,1773256239016,-500.0,6.511e-05,2]
[408220063,1773256239026,-500.0,6.511e-05,2]
[408220064,1773256239038,-500.0,6.511e-05,2]
[408220065,1773256239048,-500.0,6.511e-05,2]
[408220066,1773256239057,-500.0,6.511e-05,2]
[408220067,1773256239066,-650.0,6.511e-05,2]
[408220068,1773256239075,-500.0,6.511e-05,2]
[408220069,1773256239084,-500.0,6.511e-05,2]
[408220070,1773256239093,-500.0,6.511e-05,2]
[408220071,1773256239102,-500.0,6.511e-05,2]
[408220072,1773256239111,-500.0,6.511e-05,2]
[408220073,1773256239120,-500.0,6.511e-05,2]
[408220074,1773256239130,-500.0,6.511e-05,2]
[408220075,1773256239139,-500.0,6.511e-05,2]
[408220076,1773256239148,-500.0,6.511e-05,2]
[408220077,1773256239161,-500.0,6.511e-05,2]
[408220078,1773256239171,-500.0,6.511e-05,2]
[408220079,1773256239180,-500.0,6.511e-05,2]
[408220080,1773256239189,-500.0,6.511e-05,2]
[408220081,1773256239201,-500.0,6.511e-05,2]
[408220082,1773256239211,-500.0,6.511e-05,2]
[408220083,1773256239220,-500.0,6.511e-05,2]
[408220084,1773256239231,-500.0,6.511e-05,2]
[408220085,1773256239240,-500.0,6.511e-05,2]
[408220086,1773256239250,-500.0,6.511e-05,2]
[408220087,1773256239259,-500.0,6.511e-05,2]
[408220088,1773256239268,-500.0,6.511e-05,2]
[408220089,1773256239277,-611.55788157,6.511e-05,2]
[408220090,1773256239286,-500.0,6.511e-05,2]
[408220091,1773256239296,-500.0,6.511e-05,2]
[408220092,1773256239305,-500.0,6.511e-05,2]
[408220093,1773256239316,-500.0,6.511e-05,2]
[408220094,1773256239326,-500.0,6.511e-05,2]
[408220095,1773256239335,-500.0,6.511e-05,2]
[408220096,1773256239344,-500.0,6.511e-05,2]
[408220097,1773256239353,-500.0,6.511e-05,2]
[408220098,1773256239363,-500.0,6.511e-05,2]
[408220099,1773256239372,-500.0,6.511e-05,2]
[408220100,1773256239381,-500.0,6.511e-05,2]
[408220101,1773256239390,-500.0,6.511e-05,2]
[408220102,1773256239399,-500.0,6.511e-05,2]
[408220103,1773256239408,-500.0,6.511e-05,2]
[408220104,1773256239417,-500.0,6.511e-05,2]
[408220105,1773256239425,-500.0,6.511e-05,2]
[408220106,1773256239435,-500.0,6.511e-05,2]
[408220107,1773256239444,-500.0,6.511e-05,2]
[408220108,1773256239452,-500.0,6.511e-05,2]
[408220109,1773256239462,-500.0,6.511e-05,2]
[408220110,1773256239471,-500.0,6.511e-05,2]
[408220111,1773256239481,-500.0,6.511e-05,2]
[408220112,1773256239491,-500.0,6.511e-05,2]
[408220113,1773256239501,-500.0,6.511e-05,2]
[408220114,1773256239512,-500.0,6.511e-05,2]
[408220115,1773256239522,-500.0,6.511e-05,2]
[408220116,1773256239532,-500.0,6.511e-05,2]
[408220117,1773256239542,-500.0,6.511e-05,2]
[408220118,1773256239553,-500.0,6.511e-05,2]
[408220119,1773256239563,-500.0,6.511e-05,2]
[408220120,1773256239572,-500.0,6.511e-05,2]
[408220121,1773256239582,-500.0,6.511e-05,2]
[408220122,1773256239592,-500.0,6.511e-05,2]
[408220123,1773256239602,-500.0,6.511e-05,2]
[408220124,1773256239612,-500.0,6.511e-05,2]
[408220125,1773256239622,-500.0,6.511e-05,2]
[408220126,1773256239631,-500.0,6.511e-05,2]
[408220127,1773256239640,-500.0,6.511e-05,2]
[408220128,1773256239649,-500.0,6.511e-05,2]
[408220129,1773256239658,-500.0,6.511e-05,2]
[408220130,1773256239668,-500.0,6.511e-05,2]
[408220131,1773256239677,-500.0,6.511e-05,2]
[408220132,1773256239686,-453.77647722,6.511e-05,2]
[408220133,1773256239696,-99154.85213916,6.514e-05,2]
[408220134,1773256239713,-1236.73712935,6.514e-05,2]
[408220135,1773256240090,-1228.06076661,6.514e-05,2]
[408220174,1773256241050,-383.71407802,6.449e-05,2]
[408220176,1773256241060,-203.28592198,6.514e-05,2]
[408220181,1773256241103,-967.61586635,6.514e-05,2]
[408220376,1773256244445,-600.0,6.511e-05,2]
[408220377,1773256244458,-352.86948732,6.511e-05,2]
[408220378,1773256245117,-2534.73802082,6.511e-05,2]
[408220379,1773256245131,-1540.817128,6.511e-05,2]
[408220380,1773256245144,-1891.0220345,6.511e-05,2]
[408220381,1773256245156,-300.0,6.511e-05,2]
[408220387,1773256246589,-796.3799828,6.511e-05,2]
[408220388,1773256246749,-11461.53119502,6.511e-05,2]
[408220390,1773256548852,2231.56015334,1.225e-05,2]
[408220391,1773256802979,156.55,2e-05,2]
[408220392,1773256803413,156.55,2e-05,2]
[408220393,1773256803853,156.55,2e-05,2]
[408220394,1773256804214,156.55,2e-05,2]
[408220395,1773256804886,156.55,2e-05,2]
[408220396,1773256805355,156.55,2e-05,2]
[408220397,1773256805693,156.55,2e-05,2]
[408220398,1773256806124,156.55,2e-05,2]
[408220501,1773257437868,-2369.183989,4.959e-05,2]
[408220503,1773257437878,-1722.26853625,5.009e-05,2]
[408220505,1773257437888,-5000.0,5.06e-05,2]
[408220507,1773257437897,-581.74639253,5.111e-05,2]
[408220510,1773257437906,-300.0,5.214e-05,2]
[408220513,1773257437915,-300.0,5.214e-05,2]
[408220516,1773257437924,-300.0,5.214e-05,2]
[408220519,1773257437933,-1200.0,5.214e-05,2]
[408220521,1773257437942,-257.97533043,5.295e-05,2]
[408220523,1773257437952,-300.0,5.706e-05,2]
[408220525,1773257437961,-300.0,5.706e-05,2]
[408220527,1773257437971,-300.0,5.706e-05,2]
[408220529,1773257437981,-300.0,5.706e-05,2]
[408220531,1773257437991,-300.0,5.706e-05,2]
[408220533,1773257438000,-300.0,5.706e-05,2]
[408220535,1773257438013,-300.0,5.706e-05,2]
[408220537,1773257438022,-300.0,5.706e-05,2]
[408220539,1773257438032,-300.0,5.706e-05,2]
[408220541,1773257438041,-300.0,5.706e-05,2]
[408220543,1773257438050,-300.0,5.706e-05,2]
[408220545,1773257438060,-300.0,5.706e-05,2]
[408220547,1773257438068,-300.0,5.706e-05,2]
[408220549,1773257438077,-300.0,5.706e-05,2]
[408220551,1773257438086,-300.0,5.706e-05,2]
[408220553,1773257438096,-154.0,5.735e-05,2]
[408220555,1773257438105,-420.0,5.735e-05,2]
[408220557,1773257438114,-420.0,5.735e-05,2]
[408220559,1773257438123,-927.0,5.735e-05,2]
[408220561,1773257438132,-640.7579529,5.767e-05,2]
[408220563,1773257438142,-600.0,6.274e-05,2]
[408220565,1773257438151,-587.0,6.309e-05,2]
[408220567,1773257438159,-351.0,6.309e-05,2]
[408220569,1773257438168,-686.38369365,6.4e-05,2]
[408220570,1773257438177,-1775.34670685,6.4e-05,2]
[408220572,1773257438187,-5092.88545042,6.514e-05,2]
[408220574,1773257438196,-500.0,6.61e-05,2]
[408220576,1773257438205,-500.0,6.612e-05,2]
[408220578,1773257438215,-500.0,6.612e-05,2]
[408220580,1773257438224,-500.0,6.612e-05,2]
[408220582,1773257438233,-500.0,6.612e-05,2]
[408220584,1773257438242,-500.0,6.612e-05,2]
[408220586,1773257438252,-215.17672227,6.612e-05,2]
[408220588,1773257438261,-500.0,6.612e-05,2]
[408220590,1773257438270,-500.0,6.612e-05,2]
[408220592,1773257438279,-500.0,6.612e-05,2]
[408220594,1773257438288,-500.0,6.612e-05,2]
[408220596,1773257438297,-500.0,6.612e-05,2]
[408220597,1773257438307,-500.0,6.612e-05,2]
[408220598,1773257438316,-500.0,6.612e-05,2]
[408220599,1773257438325,-500.0,6.612e-05,2]
[408220600,1773257438335,-500.0,6.612e-05,2]
[408220601,1773257438345,-500.0,6.612e-05,2]
[408220602,1773257438354,-500.0,6.612e-05,2]
[408220603,1773257438363,-500.0,6.612e-05,2]
[408220604,1773257438372,-572.48405591,6.612e-05,2]
[408220605,1773257438381,-500.0,6.612e-05,2]
[408220606,1773257438390,-500.0,6.612e-05,2]
[408220607,1773257438399,-500.0,6.612e-05,2]
[408220608,1773257438408,-698.24921696,6.612e-05,2]
[408220609,1773257438417,-698.24921696,6.612e-05,2]
[408220610,1773257438426,-698.24921696,6.612e-05,2]
[408220611,1773257438435,-698.24921696,6.612e-05,2]
[408220612,1773257438445,-698.24921696,6.612e-05,2]
[408220613,1773257438454,-698.24921696,6.612e-05,2]
[408220614,1773257438463,-698.24921696,6.612e-05,2]
[408220615,1773257438472,-698.24921696,6.612e-05,2]
[408220616,1773257438481,-698.24921696,6.612e-05,2]
[408220617,1773257438490,-698.24921696,6.612e-05,2]
[408220618,1773257438503,-698.24921696,6.612e-05,2]
[408220619,1773257438512,-698.24921696,6.612e-05,2]
[408220620,1773257438521,-698.24921696,6.612e-05,2]
[408220621,1773257438530,-698.24921696,6.612e-05,2]
[408220622,1773257438540,-698.24921696,6.612e-05,2]
[408220623,1773257438549,-698.24921696,6.612e-05,2]
[408220625,1773257438558,-698.24921696,6.612e-05,2]
[408220627,1773257438567,-698.24921696,6.612e-05,2]
[408220629,1773257438578,-698.24921696,6.612e-05,2]
[408220631,1773257438587,-698.24921696,6.612e-05,2]
[408220633,1773257438596,-698.24921696,6.612e-05,2]
[408220634,1773257438605,-698.24921696,6.612e-05,2]
[408220636,1773257438613,-698.24921696,6.612e-05,2]
[408220638,1773257438622,-698.24921696,6.612e-05,2]
[408220640,1773257438631,-698.24921696,6.612e-05,2]
[408220642,1773257438640,-698.24921696,6.612e-05,2]
[408220644,1773257438649,-698.24921696,6.612e-05,2]
[408220646,1773257438658,-698.24921696,6.612e-05,2]
[408220648,1773257438666,-698.24921696,6.612e-05,2]
[408220650,1773257438675,-698.24921696,6.612e-05,2]
[408220652,1773257438684,-698.24921696,6.612e-05,2]
[408220654,1773257438694,-698.24921696,6.612e-05,2]
[408220656,1773257438703,-698.24921696,6.612e-05,2]
[408220658,1773257438712,-698.24921696,6.612e-05,2]
[408220660,1773257438722,-698.24921696,6.612e-05,2]
[408220662,1773257438731,-698.24921696,6.612e-05,2]
[408220664,1773257438741,-698.24921696,6.612e-05,2]
[408220665,1773257438751,-698.24921696,6.612e-05,2]
[408220666,1773257438761,-698.24921696,6.612e-05,2]
[408220667,1773257438774,-698.24921696,6.612e-05,2]
[408220668,1773257438783,-698.24921696,6.612e-05,2]
[408220669,1773257438792,-698.24921696,6.612e-05,2]
[408220670,1773257438801,-698.24921696,6.612e-05,2]
[408220671,1773257438810,-698.24921696,6.612e-05,2]
[408220672,1773257438822,-698.24921696,6.612e-05,2]
[408220673,1773257438832,-698.24921696,6.612e-05,2]
[408220674,1773257438842,-698.24921696,6.612e-05,2]
[408220675,1773257438852,-698.24921696,6.612e-05,2]
[408220676,1773257438863,-698.24921696,6.612e-05,2]
[408220677,1773257438872,-698.24921696,6.612e-05,2]
[408220678,1773257438883,-698.24921696,6.612e-05,2]
[408220679,1773257438894,-698.24921696,6.612e-05,2]
[408220680,1773257438902,-698.24921696,6.612e-05,2]
[408220681,1773257438911,-698.24921696,6.612e-05,2]
[408220682,1773257438921,-698.24921696,6.612e-05,2]
[408220683,1773257438929,-698.24921696,6.612e-05,2]
[408220684,1773257438938,-500.0,6.612e-05,2]
[408220685,1773257438947,-500.0,6.612e-05,2]
[408220686,1773257438956,-500.0,6.612e-05,2]
[408220687,1773257438965,-500.0,6.612e-05,2]
[408220688,1773257438976,-500.0,6.612e-05,2]
[408220689,1773257438985,-500.0,6.612e-05,2]
[408220690,1773257438994,-500.0,6.612e-05,2]
[408220691,1773257439003,-500.0,6.612e-05,2]
[408220692,1773257439014,-500.0,6.612e-05,2]
[408220693,1773257439025,-500.0,6.612e-05,2]
[408220694,1773257439035,-500.0,6.612e-05,2]
[408220695,1773257439044,-500.0,6.612e-05,2]
[408220696,1773257439055,-500.0,6.612e-05,2]
[408220697,1773257439065,-500.0,6.612e-05,2]
[408220698,1773257439075,-500.0,6.612e-05,2]
[408220699,1773257439085,-500.0,6.612e-05,2]
[408220700,1773257439094,-500.0,6.612e-05,2]
[408220701,1773257439104,-500.0,6.612e-05,2]
[408220702,1773257439113,-500.0,6.612e-05,2]
[408220703,1773257439122,-500.0,6.612e-05,2]
[408220704,1773257439131,-500.0,6.612e-05,2]
[408220705,1773257439140,-500.0,6.612e-05,2]
[408220706,1773257439149,-500.0,6.612e-05,2]
[408220707,1773257439158,-500.0,6.612e-05,2]
[408220708,1773257439167,-500.0,6.612e-05,2]
[408220709,1773257439178,-500.0,6.612e-05,2]
[408220710,1773257439188,-500.0,6.612e-05,2]
[408220711,1773257439197,-500.0,6.612e-05,2]
[408220712,1773257439207,-500.0,6.612e-05,2]
[408220713,1773257439217,-500.0,6.612e-05,2]
[408220714,1773257439226,-500.0,6.612e-05,2]
[408220715,1773257439235,-500.0,6.612e-05,2]
[408220716,1773257439245,-500.0,6.612e-05,2]
[408220717,1773257439254,-500.0,6.612e-05,2]
[408220718,1773257439263,-500.0,6.612e-05,2]
[408220719,1773257439272,-500.0,6.612e-05,2]
[408220720,1773257439281,-500.0,6.612e-05,2]
[408220721,1773257439290,-500.0,6.612e-05,2]
[408220722,1773257439299,-500.0,6.612e-05,2]
[408220723,1773257439308,-500.0,6.612e-05,2]
[408220724,1773257439318,-619.24889171,6.612e-05,2]
[408220725,1773257439327,-500.0,6.612e-05,2]
[408220726,1773257439336,-500.0,6.612e-05,2]
[408220727,1773257439345,-500.0,6.612e-05,2]
[408220728,1773257439354,-500.0,6.612e-05,2]
[408220729,1773257439362,-500.0,6.612e-05,2]
[408220730,1773257439371,-500.0,6.612e-05,2]
[408220731,1773257439380,-10416.30467602,6.614e-05,2]
[408220732,1773257439389,-11699.59276041,6.714e-05,2]
[408220733,1773257439399,-12507.21362606,6.814e-05,2]
[408220734,1773257439408,-720.0,6.901e-05,2]
[408220735,1773257439417,-12982.8808449,6.914e-05,2]
[408220736,1773257439427,-304.41088991,7.295e-05,2]
[408220738,1773257439436,-773.660447,7.352e-05,2]
[408220739,1773257439445,-6561.0,7.54e-05,2]
[408220740,1773257439455,-864.0,7.592e-05,2]
[408220741,1773257439464,-773.660447,7.662e-05,2]
[408220742,1773257439474,-773.660447,7.971e-05,2]
[408220743,1773257439483,-500.0,8.219e-05,2]
[408220744,1773257439493,-501.33191928,8.219e-05,2]
[408220745,1773257439509,-500.0,8.219e-05,2]
[408220746,1773257439520,-773.660447,8.281e-05,2]
[408220747,1773257439530,-1000.0,8.351e-05,2]
[408220748,1773257439540,-500.0,8.493e-05,2]
[408220749,1773257439549,-773.660447,8.59e-05,2]
[408220750,1773257439558,-773.660447,8.9e-05,2]
[408220751,1773257439567,-1000.0,9.186e-05,2]
[408220752,1773257439578,-244.0,9.186e-05,2]
[408220753,1773257439587,-350.84644939,9.295e-05,2]
[408220755,1773257439596,-13483.08046282,9.721e-05,2]
[408220756,1773257439605,-730.0,9.996e-05,2]
[408220757,1773257439614,-151.472,9.996e-05,2]
[408220758,1773257439623,-2128.56441104,0.0001,2]
[408220759,1773257439632,-290.92187328,0.0001,2]
[408220760,1773257439642,-94440.59514342,0.0001,2]
[408220761,1773257439651,-1093.67402666,0.0001,2]
[408220762,1773257439662,-1000.0,0.0001,2]
[408220763,1773257439672,-3464.09504273,0.0001,2]
[408220764,1773257439681,-1281.4492988,0.0001,2]
[408220765,1773257439691,-1000.0,0.00010104,2]
[408220766,1773257439700,-492.0,0.00010104,2]
[408220767,1773257439710,-250.0,0.00010411,2]
[408220768,1773257439720,-427.13147491,0.00010618,2]
[408220769,1773257439730,-281.0,0.00011,2]
[408220770,1773257439740,-151.0,0.00011,2]
[408220771,1773257439749,-151.0,0.00011,2]
[408220772,1773257439758,-151.0,0.00011,2]
[408220773,1773257439768,-151.0,0.00011,2]
[408220774,1773257439778,-151.0,0.00011,2]
[408220775,1773257439788,-151.0,0.00011,2]
[408220776,1773257439798,-1000.0,0.00011115,2]
[408220777,1773257439807,-791.0,0.00011115,2]
[408220778,1773257439817,-397.28200887,0.00011295,2]
[408220779,1773257439826,-151.0,0.000113,2]
[408220780,1773257439836,-151.0,0.000113,2]
[408220781,1773257439845,-151.0,0.000117,2]
[408220782,1773257439855,-151.0,0.000117,2]
[408220784,1773257439864,-2150.738,0.00011732,2]
[408220786,1773257439874,-151.0,0.000121,2]
[408220788,1773257439883,-151.0,0.000121,2]
[408220790,1773257439892,-1000.0,0.00012226,2]
[408220792,1773257439901,-1000.0,0.00012226,2]
[408220794,1773257439911,-2230.315306,0.0001228,2]
[408220796,1773257439920,-2071.4085465,0.00012329,2]
[408220798,1773257439929,-4260.86,0.00012329,2]
[408220800,1773257439938,-3550.72,0.00012329,2]
[408220802,1773257439948,-2958.93,0.00012329,2]
[408220804,1773257439957,-2465.78,0.00012329,2]
[408220806,1773257439966,-2054.81,0.00012329,2]
[408220808,1773257439975,-1712.35,0.00012329,2]
[408220810,1773257439984,-1426.95,0.00012329,2]
[408220812,1773257439992,-1189.13,0.00012329,2]
[408220814,1773257440002,-990.94,0.00012329,2]
[408220816,1773257440011,-825.78,0.00012329,2]
[408220818,1773257440020,-688.15,0.00012329,2]
[408220820,1773257440028,-573.46,0.00012329,2]
[408220822,1773257440037,-477.89,0.00012329,2]
[408220823,1773257440046,-398.24,0.00012329,2]
[408220825,1773257440055,-331.86,0.00012329,2]
[408220828,1773257440064,-276.55,0.00012329,2]
[408220830,1773257440073,-230.46,0.00012329,2]
[408220832,1773257440082,-192.05,0.00012329,2]
[408220834,1773257440092,-160.04,0.00012329,2]
[408220836,1773257440101,-800.25,0.00012329,2]
[408220838,1773257440110,-151.0,0.000124,2]
[408220840,1773257440119,-151.0,0.000124,2]
[408220842,1773257440128,-11727.93479096,0.000125,2]
[408220844,1773257440137,-151.0,0.000127,2]
[408220846,1773257440146,-151.0,0.000127,2]
[408220848,1773257440155,-2312.83697232,0.00012828,2]
[408220850,1773257440165,-3524.0,0.00012865,2]
[408220851,1773257440174,-3524.0,0.00013095,2]
[408220854,1773257440183,-151.0,0.000131,2]
[408220856,1773257440192,-151.0,0.000131,2]
[408220857,1773257440201,-3524.0,0.00013129,2]
[408220859,1773257440211,-3524.0,0.00013272,2]
[408220861,1773257440220,-3524.0,0.0001329,2]
[408220863,1773257440229,-443.71756835,0.00013295,2]
[408220865,1773257440238,-3524.0,0.00013317,2]
[408220867,1773257440247,-2398.4119403,0.00013376,2]
[408220869,1773257440256,-3524.0,0.00013379,2]
[408220871,1773257440265,-3524.0,0.00013389,2]
[408220873,1773257440275,-3524.0,0.00013395,2]
[408220875,1773257440284,-151.0,0.000134,2]
[408220877,1773257440293,-151.0,0.000134,2]
[408220879,1773257440302,-3524.0,0.00013444,2]